Workbook

Sheet 09.01
A2: МБОУ "СОШ №33" НМР РТ | D2: Отд./корп | E2: 2 неделя | H2: День | I2: 2025-01-09
A4: Раздел | B4: № рец. | C4: Блюдо | D4: Выход, г | E4: Цена | F4: Ккал | G4: Белки | H4: Жиры | I4: Угл-ды
A5: Завтрак
B6: 1 | C6: Яйцо вареное | D6: 40 | F6: 63.00 | G6: 5.08 | H6: 4.60 | I6: 0.28
A7: 2 блюдо | B7: 174 | C7: Каша кукурузная молочная | D7: 200 | F7: 305.46 | G7: 8.95 | H7: 12.84 | I7: 39.01
A8: гор.напиток | B8: 376 | C8: Чай с сахаром | D8: 200 | F8: 34.02 | G8: 0.13 | H8: 0.02 | I8: 8.20
A9: хлеб | C9: Батон нарезной | D9: 65 | F9: 158.40 | G9: 4.51 | H9: 2.08 | I9: 37.00
D10: 500 | F10: =SUM(F6:F9) -> 560.88 | G10: =SUM(G6:G9) -> 18.67 | H10: =SUM(H6:H9) -> 19.54 | I10: =SUM(I6:I9) -> 84.49
A11: Обед
A12: 1 блюдо | C12: Щи из свежей капусты с картофелем | D12: 250 | F12: 211.90 | G12: 8.04 | H12: 8.00 | I12: 26.50
A13: 2 блюдо | B13: 758 | C13: Тефтели мясные с овощами | D13: 100 | F13: 179.59 | G13: 11.40 | H13: 9.91 | I13: 24.86
A14: гарнир | B14: 312 | C14: Картофельное пюре с маслом сливочным | D14: 150/3 | F14: 157.55 | G14: 3.09 | H14: 6.98 | I14: 12.48
C15: Свекла отварная | D15: 30 | F15: 27.84 | G15: 0.42 | H15: 1.80 | I15: 2.48
A16: напиток | B16: 158 | C16: Сок фруктовый (нектар плодовый) | D16: 200 | F16: 84.80 | G16: 1.00 | H16: 0.00 | I16: 20.20
A17: хлеб | C17: Хлеб пшеничный/ржаной | D17: 20/40 | F17: 126.20 | G17: 4.16 | H17: 0.64 | I17: 25.68
D19: 738 | F19: =SUM(F12:F18) -> 787.88 | G19: =SUM(G12:G18) -> 28.11 | H19: 27.33 | I19: 112.20
C20: бесп питание младшие + допол. питание | D20: =D10+D19 -> 1238 | E20: 122.10 | F20: =SUM(F10+F19) -> 1348.76 | G20: =SUM(G10+G19) -> 46.78 | H20: =SUM(H10+H19) -> 46.87 | I20: =SUM(I10+I19) -> 196.69
A22: Горячий завтрак (младшие)
A23: хлеб | B23: 1 | C23: Печенье | D23: 20 | F23: 62.14 | G23: 1.48 | H23: 1.88 | I23: 5.42
A24: 2 блюдо | B24: 758 | C24: Тефтели мясные с овощами | D24: 100 | F24: 179.59 | G24: 11.40 | H24: 9.91 | I24: 24.86
A25: гарнир | B25: 312 | C25: Картофельное пюре с маслом сливочным | D25: 150/3 | F25: 157.55 | G25: 3.09 | H25: 6.98 | I25: 12.48
A26: напиток | B26: 158 | C26: Сок фруктовый (нектар плодовый) | D26: 200 | F26: 84.80 | G26: 1.00 | H26: 0.00 | I26: 20.20
A27: хлеб | C27: Хлеб ржаной/пшеничный | D27: 20/20 | F27: 80.00 | G27: 3.15 | H27: 0.19 | I27: 19.74
C29: бесплатное питание младшие | D29: 518 | E29: 80.66 | F29: =SUM(F23:F27) -> 564.08 | G29: =SUM(G23:G27) -> 20.12 | H29: =SUM(H23:H27) -> 18.96 | I29: =SUM(I23:I27) -> 82.70
A31: Раздел | B31: № рец. | C31: Блюдо | D31: Выход, г | E31: Цена | F31: Ккал | G31: Белки | H31: Жиры | I31: Угл-ды
A32: Старшие
A33: Фрукты | B33: 134 | C33: Фрукты (яблоки) | D33: 100 | F33: 47.00 | G33: 0.40 | H33: 0.40 | I33: 9.80
A34: 2 блюдо | B34: 758 | C34: Тефтели мясные с овощами | D34: 100 | F34: 183.50 | G34: 12.84 | H34: 12.23 | I34: 28.50
A35: гарнир | B35: 312 | C35: Картофельное пюре с маслом сливочным | D35: 180/3 | F35: 335.20 | G35: 6.70 | H35: 9.04 | I35: 34.67
A36: гор.напиток | B36: 158 | C36: Чай с сахаром, с шиповника | D36: 200 | F36: 34.02 | G36: 0.13 | H36: 0.02 | I36: 8.20
A37: хлеб | C37: Хлеб пшеничный | D37: 20 | F37: 47.00 | G37: 1.52 | H37: 0.16 | I37: 9.84
C38: питание старшие | D38: 603 | E38: 83.80 | F38: =SUM(F33:F37) -> 646.72 | G38: =SUM(G33:G37) -> 21.59 | H38: 21.85 | I38: 91.01

Sheet 10.01
A2: МБОУ "СОШ №33" НМР РТ | D2: Отд./корп | E2: 2 неделя | H2: День | I2: 2025-01-10
A4: Раздел | B4: № рец. | C4: Блюдо | D4: Выход, г | E4: Цена | F4: Ккал | G4: Белки | H4: Жиры | I4: Угл-ды
A5: Завтрак
A6: Фрукты | C6: Фрукты (яблоки) | D6: 100 | F6: 47.00 | G6: 0.40 | H6: 0.40 | I6: 9.80
A7: гор.блюдо | B7: 174 | C7: Каша ячневая молочная с маслом сливочным | D7: 150/3 | F7: 331.89 | G7: 10.61 | H7: 13.83 | I7: 41.62
A8: гор.напиток | B8: 382 | C8: Какао с молоком | D8: 200 | F8: 58.60 | G8: 4.08 | H8: 3.54 | I8: 2.61
A9: хлеб | C9: Батон нарезной | D9: 50 | F9: 131.00 | G9: 3.75 | H9: 1.45 | I9: 25.70
D11: 503 | F11: =SUM(F6:F10) -> 568.49 | G11: =SUM(G6:G10) -> 18.84 | H11: =SUM(H6:H10) -> 19.22 | I11: =SUM(I6:I10) -> 79.73
A12: Обед
A13: 1 блюдо | B13: 103 | C13: Рассольник Ленинградский со сметаной | D13: 200/5 | F13: 183.90 | G13: 9.94 | H13: 10.82 | I13: 15.56
A14: 2 блюдо | C14: Сосиска в томатном соусом, с рисом отварным | D14: 250 | F14: 426.70 | G14: 12.62 | H14: 15.31 | I14: 59.57
A15: напиток | B15: 342 | C15: Компот из свежих яблок | D15: 200 | F15: 46.60 | G15: 0.16 | H15: 0.16 | I15: 10.91
A16: хлеб | C16: Хлеб пшеничный/ржаной | D16: 20/40 | F16: 126.20 | G16: 4.16 | H16: 0.64 | I16: 25.68
D17: 715 | F17: =SUM(F13:F16) -> 783.40 | G17: =SUM(G13:G16) -> 26.88 | H17: =SUM(H13:H16) -> 26.93 | I17: =SUM(I13:I16) -> 111.72
C18: бесп питание младшие + допол. питание | D18: =D11+D17 -> 1218 | E18: 122.10 | F18: =SUM(F11+F17) -> 1351.89 | G18: =SUM(G11+G17) -> 45.72 | H18: =SUM(H11+H17) -> 46.15 | I18: =SUM(I11+I17) -> 191.45
A20: Горячий завтрак (младшие)
A21: Фрукты | C21: Фрукты (яблоки) | D21: 100 | F21: 47.00 | G21: 0.40 | H21: 0.40 | I21: 9.80
A22: гор.блюдо | C22: Сосиска в томатном соусом, с рисом отварным | D22: 250 | F22: 426.70 | G22: 12.62 | H22: 15.31 | I22: 59.57
A23: гор.напиток | B23: 382 | C23: Какао с молоком | D23: 200 | F23: 58.60 | G23: 4.08 | H23: 3.54 | I23: 2.61
A24: хлеб | C24: Хлеб пшеничный | D24: 20 | F24: 47.00 | G24: 1.52 | H24: 0.16 | I24: 9.84
C26: бесплатное питание младшие | D26: 570 | E26: 80.66 | F26: =SUM(F21:F24) -> 579.30 | G26: =SUM(G21:G24) -> 18.62 | H26: =SUM(H21:H24) -> 19.41 | I26: =SUM(I21:I24) -> 81.82
A28: Раздел | B28: № рец. | C28: Блюдо | D28: Выход, г | E28: Цена | F28: Ккал | G28: Белки | H28: Жиры | I28: Угл-ды
A29: Старшие
A30: 2 блюдо | C30: Сосиска в томатном соусом, с рисом отварным | D30: 250 | F30: 426.70 | G30: 12.62 | H30: 15.31 | I30: 59.57
A31: хол.закуска | B31: 303 | C31: Морковь свежая (доп.гарнир) | D31: 60 | F31: 19.80 | G31: 0.78 | H31: 0.06 | I31: 3.84
A32: напиток | B32: 382 | C32: Компот из свежих яблок | D32: 200 | F32: 46.60 | G32: 0.16 | H32: 0.16 | I32: 10.91
A33: хлеб | C33: Хлеб ржаной/пшеничный | D33: 40/30 | F33: 149.70 | G33: 4.92 | H33: 0.72 | I33: 30.60
C34: питание старшие | D34: 580 | E34: 82.20 | F34: =SUM(F30:F33) -> 642.80 | G34: =SUM(G30:G33) -> 18.48 | H34: =SUM(H30:H33) -> 16.25 | I34: =SUM(I30:I33) -> 104.92

Sheet 11.01
A2: МБОУ "СОШ №33" НМР РТ | D2: Отд./корп | E2: 2 неделя | H2: День | I2: 2025-01-11
A4: Раздел | B4: № рец. | C4: Блюдо | D4: Выход, г | E4: Цена | F4: Ккал | G4: Белки | H4: Жиры | I4: Угл-ды
A5: Старшие
A6: 2 блюдо | B6: 757 | C6: Котлета рубленая из куриной грудки | D6: 100 | F6: 233.10 | G6: 10.77 | H6: 12.92 | I6: 16.65
A7: гарнир | B7: 203 | C7: Пюре гороховое с маслом сливочным | D7: 180/3 | F7: 266.40 | G7: 7.81 | H7: 9.26 | I7: 41.95
A8: гор.напиток | B8: 376 | C8: Чай с сахаром | D8: 200 | F8: 32.00 | G8: 0.07 | H8: 0.02 | I8: 8.00
A9: хлеб | C9: Хлеб ржаной/пшеничный | D9: 40/30 | F9: 149.70 | G9: 4.92 | H9: 0.72 | I9: 30.60
C11: питание старшие | D11: 553 | E11: 83.80 | F11: =SUM(F6:F9) -> 681.20 | G11: =SUM(G6:G9) -> 23.57 | H11: 22.92 | I11: 97.20
